[Event "CIS Master Groups 2024"]
[Site "Vasto"]
[Date "2024.04.10"]
[Round "4.14"]
[White "Cereda, Loris"]
[Black "Rombaldoni, Denis"]
[Result "1/2-1/2"]
[ECO "B06"]
[WhiteElo "2322"]
[BlackElo "2484"]
[Annotator "TA"]
[PlyCount "73"]
[EventDate "2024.04.07"]
[EventType "team-tourn"]
[EventCountry "ITA"]
[SourceTitle "playchess.com"]
[Source "ChessBase"]
[SourceQuality "1"]
[TimeControl "40/5400+30:900+30"]

{[%evp 10,73,47,33,27,16,37,29,49,25,29,22,38,39,28,18,36,22,27,21,33,29,49,35,31,29,33,23,41,20,26,28,52,38,45,4,16,10,80,83,92,85,191,196,185,207,213,221,235,202,207,215,237,225,218,214,232,234,232,232,216,0,92,0,210,0]} 1. e4 {[%emt 0:00:04]} d6 {[%emt 0:00:06]} 2. d4 {[%emt 0:00:06]} g6 {[%emt 0:00:17]} 3. Nc3 {[%emt 0:00:09]} Bg7 {[%emt 0:00:04]} 4. Be3 {[%emt 0:00:20]} a6 {[%emt 0:00:11]} 5. f4 {[%emt 0:00:16]} b5 {[%emt 0:08:57]} 6. Be2 {[%emt 0:00:10]} Bb7 {[%emt 0:03:17]} 7. Bf3 {[%emt 0:00:06]} Nd7 {[%emt 0:00:49][%cal Bb8d7,Bd7b6,Bb6c4,Bc4d2][%mdl 32]} 8. e5 {[%emt 0:00:07]} Qc8 {[%emt 0:02:26] White has an edge.} 9. Bxb7 {[%emt 0:00:07]} Qxb7 {[%emt 0:00:05]} 10. Qf3 {[%emt 0:00:07]} Rb8 {[%emt 0:06:11]} 11. Qxb7 {[%emt 0:06:41]} Rxb7 {[%emt 0:00:14]} 12. Nf3 {[%emt 0:00:05]} Nb6 {[%emt 0:07:28]} 13. O-O-O {[%emt 0:05:17]} Nh6 {[%emt 0:13:03]} 14. Bd2 {[%emt 0:02:26]} b4 {[%emt 0:05:33]} 15. Ne4 {[%emt 0:02:45]} Nc4 {[%emt 0:08:09]} 16. Rhe1 {[%emt 0:01:47]} O-O {[%emt 0:01:24]} 17. b3 {[%emt 0:04:29]} Nxd2 {[%emt 0:00:39]} 18. Rxd2 {[%emt 0:02:11]} f6 {[%emt 0:05:09]} 19. exf6 {[%emt 0:07:49]} exf6 {[%emt 0:00:03]} 20. Rde2 {[%emt 0:00:07]} Kf7 {[%emt 0:00:52]} 21. Ned2 {[%emt 0:02:58]} Ng8 {[%emt 0:01:51] Prevents Re7+} 22. g4 {[%emt 0:04:18][%cal Bg2g4,Bg4h5][%mdl 32]} (22. Nc4 {with more complications.} Rb5 23. Kb2 g5 24. a4) 22... Rbb8 {[%emt 0:02:10]} (22... Bh6 {is more complex.} 23. g5 Bg7 24. Nf1 Rb5) 23. Ne4 {[%emt 0:02:23][%cal Bd2e4,Be4g3,Bg3e4][%mdl 32]} h6 {[%emt 0:02:17] Prevents Neg5+} (23... Rfe8 $11) 24. Nh4 $16 {[%emt 0:57:42] White has more active pieces.} Rfe8 {[%emt 0:08:07]} 25. f5 $36 {[%emt 0:00:00][%mdl 2048] White is in control.} g5 {[%emt 0:00:01]} (25... gxf5 $16 26. Nxf5 Bf8) 26. Ng6 $18 {[%emt 0:01:00]} h5 {[%emt 0:04:10]} 27. gxh5 {[%emt 0:00:00]} Nh6 {[%emt 0:00:50]} 28. Ng3 {[%emt 0:00:00] Excellent horsemanship.} Rxe2 {[%emt 0:04:51]} 29. Rxe2 {[%emt 0:00:00]} Bf8 {[%emt 0:00:14] Repels Re7+} 30. d5 {[%emt 0:00:00]} Rb5 {[%emt 0:02:47]} 31. Nxf8 {[%emt 0:00:00]} Kxf8 {[%emt 0:00:01][%mdl 4096] Endgame. KRN-KRN} 32. Re6 {[%emt 0:00:00]} Kg7 {[%emt 0:03:28] [#]} 33. Ne4 $1 {[%emt 0:00:00]} Ng8 {[%emt 0:01:41]} 34. Re8 {[%emt 0:00:00] Hoping for Rc8.} Kf7 {[%emt 0:03:04]} (34... Rxd5 $2 35. Rxg8+ Kxg8 36. Nxf6+ Kf8 37. Nxd5 $18) 35. Re6 {[%emt 0:00:00]} (35. Rc8 $18 {is more deadly.} Rxd5 36. Rxc7+ Kf8 37. Rc8+ Kf7 38. Rxg8) 35... Kg7 $1 $16 {[%emt 0:01:34]} (35... Rxd5 36. h6 Rxf5 37. h7 $18) 36. Re8 {[%emt 0:00:00]} (36. c4 $16 bxc3 37. Re8 (37. Nxc3 Rb4 $14)) 36... Kf7 $1 $18 {[%emt 0:00:01]} (36... Rxd5 $2 {perishes.} 37. Rxg8+ Kxg8 38. Nxf6+ Kg7 39. Nxd5 $18) 37. Re6 $2 {[%emt 0:00:00] Weighted Error Value: White=0.16 (very precise) /Black=0.12 (very precise) .  Missed win:     	White=1     	---        Mistake:       	White=2     	Black=2      Inaccurate:     	White=1     	---        OK:         	White=14    	Black=9      Best:        	White=3     	Black=2      Strong:       	White=1     	Black=2} ({Only move:} 37. Rc8 $18 Rxd5 38. Rxc7+ Kf8 39. Rc8+ Kf7 40. Rxg8) 1/2-1/2

[Event "CIS Master Groups 2024"]
[Site "Vasto"]
[Date "2024.04.10"]
[Round "4.15"]
[White "Garcia Palermo, Carlos Horacio"]
[Black "Sedina, Elena"]
[Result "1-0"]
[ECO "A20"]
[WhiteElo "2407"]
[BlackElo "2190"]
[Annotator "TA"]
[PlyCount "87"]
[EventDate "2024.04.07"]
[EventType "team-tourn"]
[EventCountry "ITA"]
[SourceTitle "playchess.com"]
[Source "ChessBase"]
[SourceQuality "1"]
[TimeControl "40/5400+30:900+30"]

{[%evp 9,87,-5,0,0,28,37,34,38,24,-32,-30,-30,-25,-25,-25,-14,-18,-22,-16,-43,-56,-56,-52,-49,-56,-46,-42,-60,-41,-52,-16,-16,0,0,89,120,117,88,125,121,172,157,197,220,212,204,280,291,388,393,374,378,625,623,779,776,810,632,627,638,634,597,607,614,591,602,633,618,645,625,616,645,909,907,953,949,949,934,864,813]} 1. c4 {[%emt 0:00:10]} e5 {[%emt 0:00:40]} 2. d3 {[%emt 0:00:14]} Bb4+ {[%emt 0:02:30]} 3. Nd2 {[%emt 0:00:31]} c5 {[%emt 0:08:15]} 4. Ngf3 {[%emt 0:07:06]} Nc6 {[%emt 0:01:56]} 5. g3 {[%emt 0:00:14]} Nf6 {[%emt 0:09:21]} 6. Bg2 {[%emt 0:00:53]} d5 {[%emt 0:09:48]} 7. cxd5 {[%emt 0:00:14]} Nxd5 {[%emt 0:00:04]} 8. O-O {[%emt 0:00:29] White is slightly better.} Bxd2 {[%emt 0:20:11]} 9. Qxd2 {[%emt 0:02:24]} (9. Bxd2 $11 O-O 10. Qb3) 9... O-O $15 {[%emt 0:00:31]} 10. b3 {[%emt 0:00:27]} b6 {[%emt 0:05:18]} 11. Bb2 {[%emt 0:08:17]} f6 {[%emt 0:06:43]} 12. e3 {[%emt 0:04:05]} Bg4 {[%emt 0:17:43]} 13. h3 {[%emt 0:00:52]} Be6 {[%emt 0:00:04]} 14. Rfd1 {[%emt 0:09:54]} Qd7 {[%emt 0:00:24]} 15. Kh2 {[%emt 0:00:08]} Rad8 {[%emt 0:00:59]} 16. Qe2 {[%emt 0:00:51]} Rfe8 {[%emt 0:01:21]} 17. Rab1 {[%emt 0:01:27]} Qf7 {[%emt 0:01:10]} 18. Ba1 {[%emt 0:01:52]} h6 {[%emt 0:00:25]} (18... Nde7 {simplifies} 19. Ne1 Bd5 20. Bxd5 Nxd5 21. a3 Rd7) 19. a3 {[%emt 0:01:24]} Qh5 {[%emt 0:02:32]} 20. e4 {[%emt 0:01:15]} Nde7 {[%emt 0:07:35]} 21. b4 {[%emt 0:00:24]} Bg4 {[%emt 0:02:15]} (21... Qf7 $11 {keeps the balance.}) 22. bxc5 $16 {[%emt 0:03:19]} bxc5 {[%emt 0:00:11]} 23. Rdc1 {[%emt 0:00:39]} Nd4 {[%emt 0:01:23]} 24. Bxd4 {[%emt 0:00:09]} exd4 {[%emt 0:00:35] [#]} (24... cxd4 $16 25. Qa2+ Kf8) 25. Qa2+ $1 $18 {[%emt 0:04:02]} Kh8 {[%emt 0:00:08]} 26. Nh4 {[%emt 0:01:40]} Be2 {[%emt 0:00:50]} 27. Qd2 {[%emt 0:00:44]} g5 {[%emt 0:00:18]} 28. Rxc5 {[%emt 0:00:23]} Qf7 {[%emt 0:00:46]} 29. Qxe2 {[%emt 0:04:21]} gxh4 {[%emt 0:00:01]} 30. Rb7 {[%emt 0:00:18]} Qg6 $2 {[%emt 0:00:57] [#] Black is weak on the light squares} (30... Rb8) 31. Rcc7 {[%emt 0:17:51] White is clearly winning.} hxg3+ {[%emt 0:00:16]} 32. fxg3 {[%emt 0:00:06]} Nd5 {[%emt 0:00:32]} 33. Rh7+ {[%emt 0:00:26]} Qxh7 {[%emt 0:00:14]} 34. Rxh7+ {[%emt 0:00:06]} Kxh7 {[%emt 0:00:01]} 35. Qh5 {[%emt 0:00:33]} Ne3 {[%emt 0:00:08]} 36. Qf7+ {[%emt 0:30:42]} Kh8 {[%emt 0:02:25]} 37. Qxf6+ {[%emt 0:00:00]} Kh7 {[%emt 0:00:00]} 38. e5 {[%emt 0:00:00]} Nxg2 {[%emt 0:00:12]} 39. Qf7+ {[%emt 0:00:00]} Kh8 {[%emt 0:00:05]} 40. Kxg2 {[%emt 0:00:00]} Rf8 {[%emt 0:01:05]} 41. Qg6 {[%emt 0:00:00]} Rb8 {[%emt 0:15:21]} 42. Qxh6+ {[%emt 0:00:00]} Kg8 {[%emt 0:00:01]} 43. Qg5+ {[%emt 0:00:00]} Kh8 {[%emt 0:00:08]} 44. Qh4+ {[%emt 0:00:00] Weighted Error Value: White=0.12 (very precise) /Black=0.34.  Mistake:       	White=1     	Black=3      Inaccurate:     	White=1     	Black=5      OK:         	White=11    	Black=11     Best:        	White=4     	---        Strong:       	White=1     	---} 1-0

[Event "CIS Master Groups 2024"]
[Site "Vasto"]
[Date "2024.04.10"]
[Round "4.16"]
[White "Di Trapani, Davide"]
[Black "Loiacono, Antonio"]
[Result "1/2-1/2"]
[ECO "B01"]
[WhiteElo "2161"]
[BlackElo "2292"]
[Annotator "TA"]
[PlyCount "88"]
[EventDate "2024.04.07"]
[EventType "team-tourn"]
[EventCountry "ITA"]
[SourceTitle "playchess.com"]
[Source "ChessBase"]
[SourceQuality "1"]
[TimeControl "40/5400+30:900+30"]

{[%evp 9,88,23,36,13,9,-8,-3,-5,-14,-22,2,-3,1,-56,-20,-74,15,-15,4,8,0,-8,0,7,14,12,14,4,8,0,0,0,0,-62,0,-16,-14,-10,-15,-7,0,0,0,-28,0,0,0,0,0,0,67,-23,53,0,0,0,0,0,0,0,0,0,0,0,0,0,0,0,0,0,0,0,0,0,0,0,0,0,0,0,0]} 1. e4 {[%emt 0:00:05]} d5 {[%emt 0:00:11]} 2. exd5 {[%emt 0:00:21]} Qxd5 {[%emt 0:00:06]} 3. Nc3 {[%emt 0:01:19]} Qd8 {[%emt 0:00:14]} 4. d4 {[%emt 0:04:15]} Nf6 {[%emt 0:00:05]} 5. Be3 {[%emt 0:06:11]} e6 {[%emt 0:04:13]} 6. Qd3 {[%emt 0:05:56]} b6 {[%emt 0:07:15]} 7. O-O-O {[%emt 0:04:03]} Ba6 {[%emt 0:02:30]} 8. Qd2 {[%emt 0:00:08]} Bxf1 {[%emt 0:00:31]} 9. Rxf1 {[%emt 0:00:02]} Nc6 {[%emt 0:10:34]} 10. Nge2 {[%emt 0:12:53]} Qd7 {[%emt 0:02:10]} 11. Nf4 {[%emt 0:04:20]} (11. a3 $11) 11... O-O-O {[%emt 0:03:47][%cal Rc6d4]} 12. Qe2 {[%emt 0:05:04]} (12. Nd3 $11) 12... Kb7 {[%emt 0:05:44]} ({Black should try} 12... Nxd4 $17 13. Qa6+ Kb8) 13. Rd1 {[%emt 0:06:31]} Nd5 {[%emt 0:13:54]} (13... Be7 {is more complex.} 14. d5 exd5 15. Nfxd5 Nxd5 16. Nxd5 Qe6) 14. Ncxd5 {[%emt 0:00:13]} exd5 {[%emt 0:00:04]} 15. Nd3 {[%emt 0:02:35]} f6 {[%emt 0:03:47]} 16. Qf3 {[%emt 0:02:55]} Ne7 {[%emt 0:01:41]} 17. g4 {[%emt 0:03:23]} c6 {[%emt 0:01:29]} 18. h3 {[%emt 0:03:01]} Re8 {[%emt 0:06:05][%cal Bd8e8,Be8e4,Be4f4][%mdl 32]} 19. Bf4 {[%emt 0:11:17]} Ng6 {[%emt 0:01:52]} 20. Bg3 {[%emt 0:00:20]} Re4 {[%emt 0:20:15]} 21. c3 {[%emt 0:06:30]} (21. Rhe1 $11 Rxd4 22. c3) 21... Bd6 {[%emt 0:00:56]} ({Better is} 21... h5 $1 $15) 22. Qf5 {[%emt 0:05:58]} Qxf5 {[%emt 0:03:16]} 23. gxf5 {[%emt 0:00:05]} Nf4 {[%emt 0:03:15]} 24. Nxf4 {[%emt 0:06:33]} Bxf4+ {[%emt 0:00:04]} 25. Bxf4 {[%emt 0:00:05]} Rxf4 $11 {[%emt 0:00:04][%mdl 4096] Endgame. KRR-KRR} 26. Rde1 {[%emt 0:00:43]} Rxf5 {[%emt 0:01:09][%cal Oh8c8]} 27. Re7+ {[%emt 0:00:08]} Ka6 {[%emt 0:00:07]} 28. Rhe1 {[%emt 0:00:57]} Rxf2 {[%emt 0:04:43]} 29. Rxg7 {[%emt 0:00:23]} Rh2 {[%emt 0:02:51]} (29... f5 $11) 30. Ree7 {[%emt 0:09:16] White is more active.} ({White should play} 30. a4 $1 $14) 30... Ra8 {[%emt 0:00:23]} ({Much weaker is} 30... Rxh3 $6 31. Rxa7+ Kb5 32. Kc2 Rh2+ 33. Kb3 $16) (30... Kb5 $11 31. Rxa7 Kc4) 31. Rxh7 {[%emt 0:00:00]} (31. a4 $1 $14) 31... Rg8 {[%emt 0:00:25] [#] ( -> ...Rg1+). The position is equal.} 32. Rxa7+ {[%emt 0:00:00]} Kb5 {[%emt 0:00:02]} 33. Rag7 {[%emt 0:00:00]} Rxg7 {[%emt 0:00:16]} 34. Rxg7 {[%emt 0:00:00]} Rxh3 {[%emt 0:00:06] KR-KR} (34... Kc4 $5) 35. Kc2 {[%emt 0:00:00]} c5 {[%emt 0:00:06]} 36. dxc5 {[%emt 0:00:00]} bxc5 {[%emt 0:00:02]} 37. Rb7+ {[%emt 0:00:00]} Kc6 {[%emt 0:00:04]} 38. Rf7 {[%emt 0:00:00]} Rf3 {[%emt 0:00:24]} 39. a4 {[%emt 0:01:04]} c4 {[%emt 0:00:57]} 40. Kd2 {[%emt 0:01:16]} Rf2+ {[%emt 0:01:16]} 41. Kc1 {[%emt 0:08:00]} Kb6 {[%emt 0:06:34]} 42. Rd7 {[%emt 0:00:52]} Kc6 {[%emt 0:00:15]} 43. Rf7 {[%emt 0:00:03]} Kb6 {[%emt 0:07:30]} 44. Rd7 {[%emt 0:00:08]} Kc6 {[%emt 0:00:03] Weighted Error Value: White=0.17 (very precise) /Black=0.17 (very precise) .  Mistake:       	White=5     	Black=4      Inaccurate:     	White=2     	Black=2      OK:         	White=16    	Black=12     Best:        	White=1     	---} 1/2-1/2

[Event "CIS Master Groups 2024"]
[Site "Vasto"]
[Date "2024.04.10"]
[Round "4.17"]
[White "Zwirs, Nico"]
[Black "Ceres, Dragos"]
[Result "1/2-1/2"]
[ECO "C54"]
[WhiteElo "2480"]
[BlackElo "2486"]
[Annotator "TA"]
[PlyCount "43"]
[EventDate "2024.04.07"]
[EventType "team-tourn"]
[EventCountry "ITA"]
[SourceTitle "playchess.com"]
[Source "ChessBase"]
[SourceQuality "1"]
[TimeControl "40/5400+30:900+30"]

{[%evp 14,43,17,15,28,20,26,20,23,-18,-16,-15,-13,-83,0,0,0,0,0,0,0,0,0,0,0,0,0,0,-10,-20,-14,-28]} 1. e4 {[%emt 0:00:01]} e5 {[%emt 0:00:06]} 2. Nf3 {[%emt 0:00:06]} Nc6 {[%emt 0:00:03]} 3. Bc4 {[%emt 0:00:10]} Nf6 {[%emt 0:00:06]} 4. d3 {[%emt 0:00:07]} h6 {[%emt 0:00:04]} 5. O-O {[%emt 0:00:23]} Bc5 {[%emt 0:00:04]} 6. c3 {[%emt 0:00:26]} d6 {[%emt 0:00:06]} 7. Re1 {[%emt 0:01:35]} O-O {[%emt 0:05:48]} 8. h3 {[%emt 0:00:11]} a6 {[%emt 0:00:09]} 9. Bb3 {[%emt 0:05:19]} Be6 {[%emt 0:00:34]} 10. Bxe6 {[%emt 0:09:23]} fxe6 {[%emt 0:00:05]} 11. d4 {[%emt 0:00:10]} Bb6 {[%emt 0:01:55]} 12. Be3 {[%emt 0:18:01]} exd4 {[%emt 0:03:00]} 13. cxd4 {[%emt 0:03:46]} (13. Nxd4 $11 {keeps the balance.} Nxd4 (13... Nxe4 $2 {loses.} 14. Nxc6 Qh4 15. Bxb6 $18) 14. Bxd4) 13... d5 {[%emt 0:00:04]} (13... Nxe4 $17 14. Nc3 d5) 14. e5 $11 {[%emt 0:00:07] The position is equal.} Ne4 {[%emt 0:00:04]} 15. Nc3 {[%emt 0:00:25]} Ba5 {[%emt 0:01:09]} 16. Rc1 {[%emt 0:05:04]} Bxc3 {[%emt 0:00:03]} 17. bxc3 {[%emt 0:00:07]} Na5 {[%emt 0:00:02][%cal Bc6a5,Ba5c4,Bc4e3][%mdl 32]} 18. Nh2 {[%emt 0:07:37]} Qh4 {[%emt 0:13:40][%cal Rf8f2] [#] Strongly threatening ...Rxf2.} 19. Qg4 {[%emt 0:07:54]} Qxg4 {[%emt 0:00:13]} 20. hxg4 {[%emt 0:00:23]} Nc4 {[%emt 0:00:18]} 21. f3 {[%emt 0:00:36]} Nxe3 {[%emt 0:01:35]} 22. fxe4 {[%emt 0:00:54] Weighted Error Value: White=0.13 (very precise) /Black=0.10 (very precise) .  Mistake:       	White=1     	Black=1      Inaccurate:     	White=1     	---        OK:         	White=6     	Black=8} 1/2-1/2

[Event "CIS Master Groups 2024"]
[Site "Vasto"]
[Date "2024.04.10"]
[Round "4.18"]
[White "Bettalli, Francesco"]
[Black "Loiacono, Leonardo"]
[Result "1/2-1/2"]
[ECO "C14"]
[WhiteElo "2309"]
[BlackElo "2309"]
[Annotator "TA"]
[PlyCount "102"]
[EventDate "2024.04.07"]
[EventType "team-tourn"]
[EventCountry "ITA"]
[SourceTitle "playchess.com"]
[Source "ChessBase"]
[SourceQuality "1"]
[TimeControl "40/5400+30:900+30"]

{[%evp 29,102,5,9,2,85,85,55,0,50,31,31,0,11,14,15,-2,29,16,56,41,40,47,39,10,11,8,8,15,152,168,176,140,176,168,168,0,0,0,0,0,48,11,97,102,106,101,104,91,90,63,112,110,161,108,114,102,97,99,125,125,125,125,127,8,8,8,8,0,0,0,0,0,0,0,0]} 1. e4 {[%emt 0:00:04]} e6 {[%emt 0:00:44]} 2. d4 {[%emt 0:00:09]} d5 {[%emt 0:00:21]} 3. Nc3 {[%emt 0:00:15]} Nf6 {[%emt 0:01:09]} 4. Bg5 {[%emt 0:00:09]} Be7 {[%emt 0:02:38]} 5. e5 {[%emt 0:00:26]} Nfd7 {[%emt 0:00:06]} 6. h4 {[%emt 0:00:58]} h6 {[%emt 0:00:05]} 7. Bxe7 {[%emt 0:00:05]} Qxe7 {[%emt 0:00:04]} 8. f4 {[%emt 0:00:07]} a6 {[%emt 0:01:28] C14: French: Classical System: 4 Bg5 Be7 main line.} 9. g4 {[%emt 0:01:08]} c5 {[%emt 0:03:45]} 10. Nf3 {[%emt 0:00:41]} Nc6 {[%emt 0:01:15]} 11. Qd2 {[%emt 0:00:54]} b5 {[%emt 0:06:38]} 12. O-O-O {[%emt 0:04:37]} b4 {[%emt 0:06:30]} 13. Ne2 {[%emt 0:00:45]} a5 {[%emt 0:12:23]} 14. f5 $146 {[%emt 0:01:19]} ({Predecessor:} 14. dxc5 Nxc5 15. Ned4 Nxd4 16. Nxd4 Ba6 17. Bg2 Qc7 18. Rh3 Rb8 19. f5 Rb6 20. g5 hxg5 21. Qxg5 Qxe5 {1-0 Bettalli,F (2260)-Bin Suhayl,I (2238) ITA-ch U20 82nd 2023 (1)}) 14... Nb6 {[%emt 0:12:39]} 15. Qf4 {[%emt 0:05:05]} c4 $1 {[%emt 0:06:35]} 16. f6 {[%emt 0:02:09]} gxf6 {[%emt 0:01:16]} (16... Qf8 $1 $11) 17. exf6 $16 {[%emt 0:00:05]} Qb7 {[%emt 0:00:20]} 18. Ng3 {[%emt 0:12:32]} ({White should try} 18. g5 $14 b3 19. cxb3 (19. axb3 hxg5 20. Nxg5 cxb3 $18)) 18... Qb8 {[%emt 0:15:21]} (18... a4 $11) 19. Qxb8 $1 $14 {[%emt 0:12:48]} (19. Ne5 Nd7 20. Bg2 a4 $11) 19... Rxb8 {[%emt 0:00:03]} 20. Nh5 {[%emt 0:03:08]} Kd7 {[%emt 0:03:59]} 21. Nf4 {[%emt 0:01:39]} Kd6 {[%emt 0:01:02]} 22. Bg2 {[%emt 0:04:19]} Bd7 {[%emt 0:08:58]} 23. g5 {[%emt 0:01:42]} Rbg8 {[%emt 0:01:14]} (23... hxg5 {simplifies} 24. hxg5 Rxh1 25. Rxh1 e5) 24. Bh3 {[%emt 0:02:56]} hxg5 {[%emt 0:03:19]} 25. hxg5 {[%emt 0:01:58]} e5 {[%emt 0:05:40]} 26. dxe5+ {[%emt 0:18:08]} Nxe5 {[%emt 0:00:05]} 27. Nxd5 {[%emt 0:00:38]} Nxd5 {[%emt 0:02:05]} 28. Nxe5 {[%emt 0:00:03]} Rxh3 {[%emt 0:02:35]} (28... Kxe5 $11 29. Rhe1+ Kd6 30. Bxd7 Rxg5) 29. Nxf7+ $16 {[%emt 0:01:10]} Kc5 {[%emt 0:00:40] [#]} 30. Ne5 $1 {[%emt 0:06:12]} Rxh1 {[%emt 0:01:21]} 31. Nxd7+ {[%emt 0:00:06]} Kc6 {[%emt 0:01:10]} 32. f7 $2 {[%emt 0:03:40]} (32. Ne5+ Kd6 33. Nxc4+ (33. Rxh1 Kxe5 34. f7 Rf8 $15) 33... Kc5 34. Rxh1 Kxc4 $11) ({White should play} 32. Rxh1 $18 Kxd7 33. f7) 32... Rgh8 $1 $11 {[%emt 0:00:26]} (32... Rxg5 $2 33. Rxh1 (33. f8=R $2 Rxd1+ 34. Kxd1 Kxd7 $19) 33... Rf5 34. f8=Q $18 (34. f8=R Rg5 $18)) (32... Rxd1+ 33. Kxd1 Rd8 34. f8=Q (34. f8=B $2 Nf4 $19) 34... Rxf8 35. Nxf8 $14) 33. f8=Q {[%emt 0:01:07]} Rxf8 {[%emt 0:00:14]} (33... Rxd1+ {simplifies} 34. Kxd1 Rxf8 35. Nxf8 Kd6) 34. Nxf8 {[%emt 0:00:01]} (34. Rxh1 $2 Kxd7 35. g6 Ke6 $19) 34... Rh8 {[%emt 0:00:51]} (34... Rh2 $11) 35. Nd7 {[%emt 0:01:15]} (35. Ne6 $5 Ne7 36. Nd8+ Kc5 37. Re1 $16) 35... Ne3 {[%emt 0:00:27]} (35... Rh2 $11 {keeps the balance.}) 36. Ne5+ $16 {[%emt 0:00:16]} Kc5 {[%emt 0:00:14]} 37. Re1 {[%emt 0:01:20]} Ng2 {[%emt 0:00:29]} 38. Rg1 {[%emt 0:00:51]} Nf4 {[%emt 0:00:03]} 39. Rf1 {[%emt 0:05:06]} Ne6 {[%emt 0:00:14]} (39... c3 $14) 40. g6 $16 {[%emt 0:00:16]} Rg8 {[%emt 0:00:58]} (40... c3 $16 {might work better.} 41. Rd1 Rh4) 41. Rf5 {[%emt 0:17:52]} (41. Rf6 $18 {aiming for Nxc4.} Ng7 42. Ra6) 41... c3 $16 {[%emt 0:02:21]} 42. Nf3+ {[%emt 0:00:00]} Kd6 {[%emt 0:00:43] [#]} 43. bxc3 $1 {[%emt 0:00:00]} Rxg6 {[%emt 0:01:13]} 44. Rxa5 {[%emt 0:00:00]} bxc3 {[%emt 0:01:04]} 45. Ra3 {[%emt 0:00:00]} Nf4 {[%emt 0:01:18]} 46. Ra6+ {[%emt 0:00:00]} (46. Rxc3 $2 {too greedy.} Ne2+ 47. Kd2 Nxc3 $19) (46. Kb1 $16) 46... Kc5 $11 {[%emt 0:00:14]} 47. Rxg6 {[%emt 0:00:00]} Nxg6 {[%emt 0:00:03]} 48. Ne1 {[%emt 0:00:00]} Kb4 {[%emt 0:02:11]} 49. Nd3+ {[%emt 0:00:00]} Ka3 {[%emt 0:00:34]} 50. Kb1 {[%emt 0:00:00]} Ne7 {[%emt 0:00:06]} 51. Nf4 {[%emt 0:00:00]} Kb4 {[%emt 0:00:32]} 1/2-1/2